bitfinex/quotes_ETHUSD_20250411
["timestamp","ask_amount","ask_price","bid_price","bid_amount"]
[1744335514904,6.5083,1536.5,1536.2,1.3408]
[1744335515572,13.01688,1536.5,1536.2,1.3408]
[1744335515768,6.5083,1536.5,1536.2,1.3408]
[1744335515973,6.50874,1536.4,1536.1,3.0]
[1744335516868,6.50874,1536.4,1536.1,9.50984]
[1744335517069,7.74232,1536.6,1536.1,3.649603]
[1744335517271,6.50708,1536.8,1536.1,3.0]
[1744335517607,6.50747,1536.7,1536.4,6.50845]
[1744335517765,6.50768,1536.7,1536.2,1.9295546]
[1744335517969,13.01537,1536.7,1536.3,6.50893]
[1744335518205,11.4694,1536.9,1536.3,6.50893]
[1744335518206,11.4694,1536.9,1536.3,6.50914]
[1744335518402,16.74174,1536.9,1536.5,6.50791]
[1744335518583,23.24856,1536.9,1536.5,13.01595]
[1744335518781,16.74174,1536.9,1536.6,6.50772]
[1744335518983,6.50759,1536.7,1536.4,3.0]
[1744335519280,6.50833,1536.5,1536.3,3.0]
[1744335519603,6.50922,1536.3,1536.0,1.83896901]
[1744335519911,6.50872,1536.4,1536.0,1.83896901]
[1744335520082,13.01984,1536.2,1535.8,6.51119]
[1744335520291,6.50922,1536.3,1535.8,6.51126]
[1744335520496,6.50922,1536.3,1535.9,7.100248]
[1744335520692,6.5096,1536.2,1535.9,7.59186087]
[1744335520909,6.5096,1536.2,1535.9,1.08133087]
[1744335521219,6.51012,1536.1,1535.8,3.0]
[1744335521773,6.51012,1536.1,1535.8,9.51125]
[1744335522075,6.51012,1536.1,1535.7,7.85227]
[1744335522076,1.301976,1536.1,1535.5,1.2374]
[1744335522276,6.51226,1535.6,1535.3,10.79556479]
[1744335522475,6.51296,1535.4,1535.3,7.46630053]
[1744335523511,6.51367,1535.3,1535.0,7.69737453]
[1744335523677,13.02734,1535.3,1535.0,7.69737453]
[1744335523873,6.51381,1535.2,1535.0,7.69737453]
[1744335525115,6.51423,1535.1,1535.0,7.69737453]
[1744335525493,6.51381,1535.2,1535.0,7.69737453]
[1744335525909,6.51381,1535.2,1535.0,0.231074]
[1744335526208,13.02791,1535.2,1535.0,0.231074]
[1744335526409,6.51423,1535.1,1535.0,0.231074]
[1744335526610,6.51381,1535.2,1535.0,0.231074]
[1744335527233,6.51423,1535.1,1535.0,0.231074]
[1744335528086,7.06423,1535.1,1535.0,0.231074]
[1744335528724,14.59143,1535.1,1535.0,4e-06]
[1744335529026,7.88355,1534.6,1534.5,0.04522596]
[1744335529325,7.88355,1534.6,1534.5,0.1721382]
[1744335530085,6.51635,1534.6,1534.5,0.1721382]
[1744335530290,12.67569,1534.8,1534.5,0.04522596]
[1744335530525,6.51569,1534.8,1534.6,0.13794867]
[1744335531106,6.51593,1534.7,1534.6,0.13794867]
[1744335531303,6.51569,1534.8,1534.6,0.13794867]
[1744335531708,13.03153,1534.8,1534.6,0.13794867]
[1744335532018,6.51593,1534.7,1534.6,0.13794867]
[1744335537620,6.51635,1534.6,1534.5,0.04522596]
[1744335538131,6.51635,1534.6,1534.5,0.18430784]
[1744335539499,6.51635,1534.6,1534.5,0.04522596]
[1744335540024,7.84655,1534.6,1534.5,0.04522596]
[1744335540207,9.282798,1534.6,1534.5,0.04522596]
[1744335542808,15.992798,1534.6,1534.5,0.04522596]
[1744335543533,15.442798,1534.6,1534.5,0.04522596]
[1744335543700,14.00655,1534.6,1534.5,0.04522596]
[1744335544308,14.55655,1534.6,1534.5,0.04522596]
[1744335547916,14.00655,1534.6,1534.5,0.04522596]
[1744335548437,14.55655,1534.6,1534.5,0.04522596]
[1744335549427,6.51635,1534.6,1534.5,0.04522596]
[1744335549636,6.51576,1534.8,1534.5,0.04522596]
[1744335549910,6.51576,1534.8,1534.6,0.14467674]
[1744335550305,6.51609,1534.7,1534.6,0.14467674]
[1744335551042,16.10416,1534.9,1534.6,0.14467674]
[1744335551242,16.10416,1534.9,1534.7,1.2375]
[1744335551444,6.51426,1535.1,1534.7,10.75315]
[1744335551644,6.51395,1535.2,1534.8,13.17069105]
[1744335551817,6.51357,1535.3,1535.0,1.2375]
[1744335552151,6.51355,1535.3,1535.1,0.13986024]
[1744335552445,6.51299,1535.4,1535.1,0.13986024]
[1744335552751,6.5138,1535.2,1535.1,0.13986024]
[1744335553509,6.5138,1535.2,1534.8,17.26821]
[1744335553714,6.51303,1535.4,1534.9,3.47473915]
[1744335554037,6.51228,1535.6,1535.2,10.75114]
[1744335554547,6.51128,1535.8,1535.4,13.02543]
[1744335554848,6.51296,1535.4,1535.3,0.72697295]
[1744335555146,6.51296,1535.4,1535.2,1.2375]
[1744335555948,13.02702,1535.3,1535.0,4.2375]
[1744335556151,6.51405,1535.2,1535.0,1.2375]
[1744335556527,7.165205,1535.2,1534.7,1.2375]
[1744335556835,13.02981,1535.0,1534.7,1.2375]
[1744335557011,6.51536,1534.9,1534.7,1.2375]
[1744335557212,6.51469,1535.0,1534.7,1.2375]
[1744335557213,6.51394,1535.2,1534.8,3.0]
[1744335557449,13.02741,1535.3,1534.9,6.51487]
[1744335557629,13.02741,1535.3,1534.9,7.10504309]
[1744335557953,6.51308,1535.4,1534.9,7.10504309]
[1744335558156,6.51308,1535.4,1535.0,6.65250779]
[1744335558530,13.02632,1535.4,1535.0,6.65250779]
[1744335558730,9.271,1535.6,1535.1,1.2375]
[1744335558942,6.51268,1535.5,1535.2,0.13653297]
[1744335559368,6.51338,1535.3,1535.2,0.13653297]
[1744335559928,6.51416,1535.2,1534.9,4.2375]
[1744335560128,13.02836,1535.2,1534.9,4.73153594]
[1744335560339,6.51448,1535.1,1534.9,4.73153594]
[1744335560544,6.51448,1535.1,1534.9,4.2375]
[1744335560953,6.51448,1535.1,1534.9,1.2375]
[1744335561677,13.02622,1535.4,1535.0,6.51448]
[1744335561971,6.51259,1535.5,1535.1,9.51421]
[1744335562128,13.02538,1535.5,1535.1,9.51421]
[1744335562575,6.51296,1535.4,1535.1,9.51421]
[1744335563056,6.51296,1535.4,1535.1,3.0]
[1744335563454,6.51296,1535.4,1535.1,3.649603]
[1744335563661,6.51296,1535.4,1535.1,9.51409]
[1744335565370,6.51259,1535.5,1535.1,9.51406]
[1744335565747,13.0254,1535.5,1535.1,9.51406]
[1744335566367,6.51253,1535.5,1535.0,3.0]
[1744335566566,6.51366,1535.3,1535.0,3.0]
[1744335566764,6.51366,1535.3,1535.0,9.51462]
[1744335567648,6.51301,1535.4,1535.0,16.02907]
[1744335567892,13.02623,1535.4,1535.0,9.51445]
[1744335568092,6.51301,1535.4,1535.0,9.51445]
[1744335568250,6.51254,1535.5,1535.1,6.51394]
[1744335569598,6.51301,1535.4,1535.1,6.51394]
[1744335569887,13.02623,1535.4,1535.0,16.02914]
[1744335570196,6.51354,1535.3,1535.0,3.0]
[1744335570794,6.51388,1535.2,1535.0,3.0]
[1744335571297,6.51388,1535.2,1534.9,4.7289943]
[1744335571462,6.51465,1535.0,1534.7,1.2824]
[1744335571657,13.02961,1535.0,1534.7,1.2824]
[1744335572103,6.51465,1535.0,1534.7,4.2824]
[1744335572464,13.02955,1535.0,1534.7,4.2824]
[1744335572654,7.75598,1535.4,1534.5,6.56194596]
[1744335572655,6.5155,1534.8,1534.5,7.84434596]
[1744335572859,13.03126,1534.8,1534.5,1.81126698]
[1744335573195,6.51428,1535.1,1534.6,0.13157805]
[1744335573196,6.51619,1534.7,1534.6,0.13157805]
[1744335574304,7.819368,1534.7,1534.6,0.13157805]
[1744335575485,6.51619,1534.7,1534.6,0.13157805]
[1744335575701,7.06619,1534.7,1534.6,0.13157805]
[1744335576903,6.51619,1534.7,1534.6,0.13157805]
[1744335577217,6.51472,1535.0,1534.6,1.41397805]
[1744335577383,6.51472,1535.0,1534.6,7.93009805]
[1744335577564,6.51472,1535.0,1534.6,14.44629805]
[1744335577899,13.02962,1535.0,1534.6,7.93009805]
[1744335578397,6.51512,1534.9,1534.6,1.41397805]
[1744335578601,6.51593,1534.7,1534.6,0.13157805]
[1744335580413,6.5155,1534.8,1534.6,0.13157805]
[1744335580612,6.51516,1534.9,1534.7,1.2824]
[1744335580910,6.51472,1535.0,1534.8,0.13625029]
[1744335582117,6.51508,1534.9,1534.8,0.13625029]
[1744335582704,13.02963,1535.0,1534.8,0.13625029]
[1744335583020,6.51428,1535.1,1534.8,0.13625029]
[1744335583185,6.51324,1535.4,1534.8,0.13625029]
[1744335583186,6.51326,1535.4,1534.8,0.13625029]
[1744335583520,6.51491,1535.0,1534.8,0.13625029]
[1744335584759,6.51508,1534.9,1534.8,0.13625029]
[1744335587296,6.51635,1534.6,1534.5,0.04522596]
[1744335587618,13.03219,1534.7,1534.5,0.18147517]
[1744335587826,13.03219,1534.7,1534.5,0.04522596]
[1744335588128,13.03219,1534.7,1534.6,0.13674478]
[1744335588295,6.51601,1534.7,1534.6,0.13674478]
[1744335589450,13.03043,1534.9,1534.6,0.13674478]
[1744335590551,13.03042,1534.9,1534.6,0.13674478]
[1744335591454,6.51565,1534.8,1534.6,0.13674478]
[1744335591749,13.03144,1534.8,1534.6,0.13674478]
[1744335591944,6.51565,1534.8,1534.6,0.13674478]
[1744335592148,6.51593,1534.7,1534.6,0.13674478]
[1744335593822,6.51511,1534.9,1534.6,0.13674478]
[1744335595240,6.51552,1534.8,1534.6,0.13674478]
[1744335596545,13.03142,1534.8,1534.6,0.13674478]
[1744335596752,6.51552,1534.8,1534.6,0.13674478]
[1744335597138,6.51593,1534.7,1534.6,0.13674478]
[1744335598135,13.03126,1534.8,1534.6,0.13674478]
[1744335598437,6.51552,1534.8,1534.6,0.13674478]
[1744335598621,6.51521,1534.9,1534.6,0.13674478]
[1744335599021,6.51563,1534.8,1534.6,0.13674478]
[1744335599932,16.41594,1535.1,1534.6,0.13674478]
[1744335600126,6.5157,1534.8,1534.6,0.13674478]
[1744335600331,6.5139,1535.2,1534.8,6.51542]
[1744335600533,13.02539,1535.5,1535.1,1.2906]
[1744335600753,13.02539,1535.5,1535.1,7.80469]
[1744335600951,4.83299158,1535.7,1535.4,6.51269]
[1744335601154,4.83299158,1535.7,1535.5,1.2906]
[1744335601330,6.51296,1535.4,1535.3,1.2906]
[1744335601532,6.51263,1535.5,1535.3,1.42925639]
[1744335601739,6.51296,1535.4,1535.3,1.2906]
[1744335602119,6.51296,1535.4,1535.3,0.13865639]
[1744335602320,6.51296,1535.4,1535.1,4.2906]
[1744335602520,6.51296,1535.4,1535.2,0.13865639]
[1744335602719,6.51296,1535.4,1535.1,4.2906]
[1744335602956,6.51341,1535.3,1535.2,0.13865639]
[1744335603125,6.51341,1535.3,1535.2,0.49390112]
[1744335603325,13.02622,1535.4,1535.2,0.13865639]
[1744335603549,6.51338,1535.3,1535.1,4.2906]
[1744335603755,6.51258,1535.5,1535.2,0.13865639]
[1744335604056,6.51258,1535.5,1535.1,17.31869]
[1744335604271,6.51258,1535.5,1535.3,0.13865639]
[1744335604467,6.51258,1535.5,1535.1,10.80463]
[1744335604813,6.51335,1535.4,1535.1,4.2906]
[1744335604988,6.51335,1535.4,1535.2,0.13865639]
[1744335605163,6.51335,1535.4,1535.2,0.48388829]
[1744335605353,6.51335,1535.4,1535.3,0.13865639]
[1744335605689,6.51335,1535.4,1535.1,4.2906]
[1744335605894,6.51335,1535.4,1535.3,0.13865639]
[1744335606185,13.02655,1535.4,1535.3,0.13865639]
[1744335606363,13.02655,1535.4,1535.1,4.2906]
[1744335606564,13.02655,1535.4,1535.2,0.13865639]
[1744335606749,6.51211,1535.6,1534.9,1.2906]
[1744335606750,6.51404,1535.2,1534.9,1.2906]
[1744335606946,6.51446,1535.1,1535.0,0.13370206]
[1744335607486,6.51423,1535.1,1535.0,0.13370206]
[1744335607854,13.0288,1535.1,1534.8,3.0]
[1744335608358,13.0288,1535.1,1534.9,0.13016294]
[1744335608554,6.51465,1535.0,1534.9,0.13016294]
[1744335609290,6.51572,1534.8,1534.5,8.69622596]
[1744335609592,6.51596,1534.7,1534.5,0.04522596]
[1744335609763,13.0313,1534.8,1534.5,0.04522596]
[1744335610189,13.0313,1534.8,1534.5,0.54128133]
[1744335611201,6.51594,1534.7,1534.5,0.54128133]
[1744335611772,6.51635,1534.6,1534.5,0.04522596]
[1744335614692,16.4756,1534.8,1534.5,0.04522596]
[1744335614893,21.68249,1534.8,1534.5,0.04522596]
[1744335615098,15.1667,1534.8,1534.5,0.04522596]
[1744335615668,21.68244,1534.8,1534.5,0.04522596]
[1744335615900,6.51598,1534.7,1534.5,0.04522596]
[1744335616105,15.16658,1534.8,1534.5,0.04522596]
[1744335617217,21.68236,1534.8,1534.5,0.04522596]
[1744335617422,6.51595,1534.7,1534.5,0.04522596]
[1744335618112,15.16658,1534.8,1534.5,0.04522596]
[1744335618321,15.16658,1534.8,1534.6,0.12755004]
[1744335618489,6.51558,1534.8,1534.6,0.12755004]
[1744335618693,13.03132,1534.8,1534.6,0.12755004]
[1744335618893,6.51593,1534.7,1534.6,0.12755004]
[1744335620119,6.51635,1534.6,1534.5,0.04522596]
[1744335621007,13.03212,1534.7,1534.5,0.04522596]
[1744335621179,6.51635,1534.6,1534.5,0.04522596]
[1744335621822,8.37525,1534.6,1534.5,0.04522596]
[1744335622424,8.37525,1534.6,1534.5,5.96e-06]
[1744335622622,16.024368,1534.6,1534.5,5.96e-06]
[1744335623494,7.82695,1534.2,1534.1,0.1]
[1744335623690,8.37695,1534.2,1534.1,0.1]
[1744335624494,6.51805,1534.2,1534.1,0.1]
[1744335624833,15.03081,1534.3,1534.1,0.1]
[1744335625030,6.51721,1534.4,1534.1,0.749603]
[1744335625184,6.51683,1534.5,1534.1,6.43792308]
[1744335625389,13.03392,1534.5,1534.1,9.95621308]
[1744335625614,6.51721,1534.4,1534.1,6.61829]
[1744335626539,6.51642,1534.6,1534.1,3.43792308]
[1744335626729,8.514,1534.7,1534.4,7.76276]
[1744335627255,6.51715,1534.5,1534.2,1.2457]
[1744335627408,6.51656,1534.6,1534.2,1.2457]
[1744335627595,7.4496,1534.7,1534.2,1.2457]
[1744335627596,6.51747,1534.4,1534.2,1.2457]
[1744335628142,6.51638,1534.6,1534.2,7.76339]
[1744335628640,16.31955,1534.7,1534.3,6.51744]
[1744335629722,6.51643,1534.6,1534.2,14.28125]
[1744335629925,6.51643,1534.6,1534.2,7.76339]
[1744335630132,6.51643,1534.6,1534.3,6.5176]
[1744335630318,16.31954,1534.7,1534.3,13.0352]
[1744335630940,22.83571,1534.7,1534.3,6.5176]
[1744335631352,16.31954,1534.7,1534.3,6.5176]
[1744335631644,16.31954,1534.7,1534.3,12.98499]
[1744335631942,15.02994,1534.7,1534.4,6.79879826]
[1744335632932,15.02994,1534.7,1534.4,0.28166826]
[1744335633137,21.54614,1534.7,1534.3,6.4676]
[1744335633339,6.51642,1534.6,1534.4,0.28364749]
[1744335633644,6.51681,1534.5,1534.2,7.7637]
[1744335634245,6.51642,1534.6,1534.2,14.28154]
[1744335635559,15.02995,1534.7,1534.3,9.44670114]
[1744335635849,8.514,1534.7,1534.5,9.44579114]
[1744335636151,13.03034,1534.9,1534.5,9.44579114]
[1744335636326,13.03135,1534.8,1534.4,6.51714]
[1744335636526,6.51614,1534.7,1534.4,6.51714]
[1744335636846,6.51614,1534.7,1534.3,15.96408114]
[1744335637048,6.51614,1534.7,1534.4,6.51703]
[1744335637255,13.03229,1534.7,1534.3,15.96417114]
[1744335637553,6.51614,1534.7,1534.3,15.96417114]
[1744335638110,6.5155,1534.8,1534.4,6.51678]
[1744335638315,6.5155,1534.8,1534.5,9.44570114]
[1744335638745,13.03134,1534.8,1534.4,6.51713]
[1744335639064,13.03134,1534.8,1534.4,6.51707]
[1744335639212,6.51654,1534.6,1534.3,3.0]
[1744335639955,6.51654,1534.6,1534.3,9.51751]
[1744335641675,6.51654,1534.6,1534.3,6.51751]
[1744335645467,13.03312,1534.6,1534.3,6.51751]
[1744335646078,6.51654,1534.6,1534.3,6.51751]
[1744335648257,6.51654,1534.6,1534.4,0.28364749]
[1744335648585,6.51654,1534.6,1534.3,6.51751]
[1744335648791,6.51654,1534.6,1534.4,0.28364749]
[1744335648994,6.51654,1534.6,1534.3,6.51751]
[1744335649154,6.51654,1534.6,1534.4,0.28364749]
[1744335649355,6.51654,1534.6,1534.3,6.51751]
[1744335649590,6.51654,1534.6,1534.4,0.28364749]
[1744335649792,6.51654,1534.6,1534.3,6.51751]
[1744335650086,6.51654,1534.6,1534.4,0.28364749]
[1744335650586,6.51654,1534.6,1534.5,0.28364749]
[1744335650789,6.51654,1534.6,1534.3,6.51751]
[1744335650991,6.51654,1534.6,1534.4,0.28364749]
[1744335651187,6.51654,1534.6,1534.3,6.51751]
[1744335651357,6.51654,1534.6,1534.4,0.28364749]
[1744335651558,6.51654,1534.6,1534.3,6.51751]
[1744335651883,6.51654,1534.6,1534.4,0.28364749]
[1744335652257,6.51654,1534.6,1534.3,6.51746]
[1744335652457,6.51654,1534.6,1534.4,0.87435059]
[1744335652658,6.51654,1534.6,1534.4,0.28364749]
[1744335652909,6.51654,1534.6,1534.3,6.51746]
[1744335653086,6.51654,1534.6,1534.5,0.28364749]
[1744335653257,6.51654,1534.6,1534.3,6.51746]
[1744335653592,6.51654,1534.6,1534.4,0.28364749]
[1744335653797,6.51654,1534.6,1534.3,6.51746]
[1744335653996,6.51654,1534.6,1534.2,4.2457]
[1744335653997,6.51727,1534.4,1534.2,4.2457]
[1744335654298,6.51777,1534.3,1534.1,0.1]
[1744335655093,6.51805,1534.2,1534.1,0.1]
[1744335655264,6.51805,1534.2,1534.1,0.69152562]
[1744335655566,7.821632,1534.2,1534.1,0.69152562]
[1744335655760,7.821632,1534.2,1534.1,1.63785738]
[1744335656170,8.371632,1534.2,1534.1,1.63785738]
[1744335656376,8.371632,1534.2,1534.1,0.45493051]
[1744335656768,7.821632,1534.2,1534.1,0.1]
[1744335656988,6.51805,1534.2,1534.1,0.1]
[1744335659420,7.06805,1534.2,1534.1,0.1]
[1744335659936,6.51805,1534.2,1534.1,0.1]
[1744335663275,15.02577,1534.3,1534.1,0.38647643]
[1744335663475,15.02577,1534.3,1534.1,0.1]
[1744335663713,8.508,1534.3,1534.2,0.28647643]
[1744335663922,1.3609,1535.0,1534.3,4.2783]
[1744335664134,6.51355,1535.3,1534.9,2.92909114]
[1744335664297,6.51355,1535.3,1534.9,9.44396114]
[1744335664480,6.51545,1534.9,1534.6,1.2783]
[1744335664678,6.51439,1535.1,1535.0,0.260915]
[1744335664934,6.51489,1535.0,1534.7,3.0]
[1744335665312,6.51439,1535.1,1534.8,2.92909114]
[1744335666925,7.8739,1535.4,1535.0,6.51462]
[1744335667126,21.30548905,1535.5,1535.1,3.0]
[1744335667310,14.79288905,1535.5,1535.3,6.51327]
[1744335667488,14.79288905,1535.5,1535.2,9.44288114]
[1744335667489,6.51351,1535.3,1535.1,3.0]
[1744335667690,6.51423,1535.1,1534.9,6.06]
[1744335667890,6.51508,1534.9,1534.8,1.2783]
[1744335668129,6.51474,1535.0,1534.8,1.2783]
[1744335668429,6.51429,1535.1,1534.8,1.2783]
[1744335668630,6.51309,1535.4,1535.0,9.44353114]
[1744335668848,8.51,1535.5,1534.9,2.92909114]
[1744335669125,6.514,1535.2,1534.9,5.92909114]
[1744335669340,6.51339,1535.3,1534.9,12.44399114]
[1744335669697,13.02714,1535.3,1534.9,12.44399114]
[1744335669896,6.51339,1535.3,1534.9,18.95884114]
[1744335670125,6.51307,1535.4,1535.0,6.51444]
[1744335670430,6.51307,1535.4,1535.0,13.02885]
[1744335670630,7.87312,1535.6,1535.2,1.2783]
[1744335670819,6.51206,1535.7,1535.3,6.51323]
[1744335671014,13.02399,1535.7,1535.4,0.22897506]
[1744335671330,6.51253,1535.5,1535.4,0.22897506]
[1744335672129,6.51253,1535.5,1535.2,1.2783]
[1744335672466,6.51132,1535.8,1535.3,2.92909114]
[1744335672587,13.02284,1535.8,1535.4,6.74171506]
[1744335673239,4.64650605,1535.8,1535.4,0.22897506]
[1744335673413,6.51253,1535.5,1535.4,0.22897506]
[1744335673606,6.51371,1535.3,1535.0,4.82780773]
[1744335673823,6.51362,1535.3,1535.1,0.22897506]
[1744335674020,6.51362,1535.3,1534.6,0.49362164]
[1744335674021,6.51519,1534.9,1534.6,8.33888164]
[1744335674223,6.51424,1535.1,1534.8,3.0]
[1744335674420,6.51523,1534.9,1534.6,4.3291]
[1744335674702,6.51556,1534.8,1534.7,0.20512357]
[1744335675111,6.51556,1534.8,1534.6,1.3291]
[1744335675314,6.51523,1534.9,1534.7,0.20554475]
[1744335675702,6.51523,1534.9,1534.6,1.3291]
[1744335675903,9.056,1535.1,1534.8,0.20842369]
[1744335675904,15.02029,1535.1,1534.8,0.20842369]
[1744335676235,15.02029,1535.1,1534.9,0.20842369]
[1744335676402,6.51465,1535.0,1534.9,0.20842369]
[1744335676940,15.02029,1535.1,1534.9,0.20842369]
[1744335677235,6.51429,1535.1,1534.9,0.20842369]
[1744335677439,6.51429,1535.1,1534.7,6.51576]
[1744335677642,6.51429,1535.1,1534.8,0.20842369]
[1744335678646,7.80866,1535.2,1534.8,6.72367369]
[1744335678866,7.80866,1535.2,1534.9,6.515]
[1744335679162,7.80866,1535.2,1534.8,6.51525]
[1744335679363,14.32271,1535.2,1535.0,0.20842369]
[1744335679559,14.32271,1535.2,1534.8,6.51525]
[1744335679768,14.32271,1535.2,1535.1,0.20842369]
[1744335680283,6.51482,1535.0,1534.6,1.3291]
[1744335680431,6.51508,1534.9,1534.6,10.84545]
[1744335681137,1.2948,1534.9,1534.3,1.3291]
[1744335681347,6.51701,1534.5,1534.1,10.87629114]
[1744335681547,6.518,1534.3,1534.1,0.1]
[1744335682431,13.03601,1534.3,1534.1,0.1]
[1744335684473,6.51805,1534.2,1534.1,0.1]
[1744335684631,16.33765,1534.2,1534.1,0.1]
[1744335684988,19.88765,1534.2,1534.1,0.1]
[1744335685133,6.52056,1533.7,1533.4,0.395092]
[1744335685334,6.52064,1533.6,1533.4,0.395092]
[1744335685741,6.52103,1533.5,1533.4,0.395092]
[1744335686143,8.39563,1533.5,1532.8,7.46630053]
[1744335686352,6.52358,1532.9,1532.8,7.46630053]
[1744335686568,15.01931,1533.0,1532.8,7.46630053]
[1744335686880,21.54276,1533.0,1532.8,7.46630053]
[1744335687089,6.52358,1532.9,1532.8,7.46630053]
[1744335687645,7.07358,1532.9,1532.8,7.46630053]
[1744335687982,8.36768,1532.9,1532.8,7.46630053]
[1744335688948,6.52451,1532.7,1532.3,7.79907]
[1744335689466,0.836768,1532.8,1532.3,1.2731]
[1744335689777,6.52459,1532.7,1532.3,10.79907]
[1744335690102,1.2941,1532.9,1532.5,6.52527]
[1744335690383,6.52444,1532.7,1532.3,10.79918]
[1744335690688,7.8177,1532.9,1532.4,6.5257]
[1744335690851,6.52321,1533.0,1532.7,1.2731]
[1744335691240,6.52321,1533.0,1532.8,0.20734619]
[1744335691445,6.52321,1533.0,1532.6,9.5247]
[1744335691640,7.4541,1533.2,1532.8,6.524]
[1744335691876,13.97645,1533.2,1532.8,6.524]
[1744335692182,13.97645,1533.2,1532.9,0.20664396]
[1744335692541,6.16,1533.2,1532.9,6.52357]
[1744335692770,6.16,1533.2,1533.0,0.20664396]
[1744335692985,6.52206,1533.3,1533.0,0.20664396]
[1744335692986,8.499,1533.4,1533.0,0.20664396]
[1744335693192,8.499,1533.4,1533.1,6.52257]
[1744335693555,15.02046,1533.4,1533.2,0.20383595]
[1744335693753,15.02046,1533.4,1533.0,9.5229]
[1744335694253,8.499,1533.4,1533.1,0.20376577]
[1744335694453,6.5223,1533.2,1532.9,4.2731]
[1744335694650,6.5223,1533.3,1533.0,0.20292366]
[1744335695291,13.04446,1533.3,1533.0,0.20292366]
[1744335695491,6.52216,1533.3,1533.0,0.20292366]
[1744335695790,15.02049,1533.4,1533.0,6.72591366]
[1744335696254,6.52196,1533.3,1533.0,6.72591366]
[1744335696457,8.499,1533.4,1533.0,0.20292366]
[1744335696759,8.499,1533.4,1533.2,3.0]
[1744335696955,8.499,1533.4,1533.3,7.79498]
[1744335697155,6.52025,1533.7,1533.4,3.0]
[1744335697357,13.04069,1533.7,1533.4,3.0]
[1744335697719,13.04069,1533.7,1533.5,0.20285349]
[1744335697858,6.5206,1533.6,1533.5,0.20285349]
[1744335699959,6.52141,1533.5,1533.2,3.0]
[1744335700159,6.52141,1533.5,1533.3,0.19632768]
[1744335700160,6.52181,1533.4,1533.3,0.19632768]
[1744335700461,6.52181,1533.4,1533.1,7.79579]
[1744335700685,6.52107,1533.5,1533.2,6.71914886]
[1744335701086,6.52107,1533.5,1533.2,0.19688886]
[1744335701277,15.24376915,1533.6,1533.2,6.71903886]
[1744335701489,7.81478,1533.6,1533.2,13.24119886]
[1744335701797,14.33561,1533.6,1533.2,6.71903886]
[1744335702801,6.52108,1533.5,1533.2,6.71903886]
[1744335704067,6.52146,1533.4,1533.2,0.19688886]
[1744335704266,6.52146,1533.4,1533.1,1.2731]
[1744335704604,13.04318,1533.4,1533.2,0.19709932]
[1744335704803,13.04318,1533.4,1533.1,1.2731]
[1744335705005,13.04318,1533.4,1533.2,0.18074219]
[1744335705212,13.04318,1533.4,1533.1,1.2731]
[1744335705510,13.04318,1533.4,1533.2,0.18104244]
[1744335705511,6.52194,1533.3,1533.2,0.18104244]
[1744335705804,6.52194,1533.3,1532.9,14.28916]
[1744335706009,13.04406,1533.3,1533.0,0.18104244]
[1744335706718,6.52233,1533.2,1533.0,0.18104244]
[1744335707812,7.88273,1533.1,1533.0,0.18104244]
[1744335707980,6.52273,1533.1,1533.0,0.18104244]
[1744335708307,7.07273,1533.1,1532.5,6.52515]
[1744335708613,6.52387,1532.9,1532.6,3.0]
[1744335708770,6.52322,1533.0,1532.5,4.73710524]
[1744335708976,6.52278,1533.1,1532.7,6.52433]
[1744335709214,14.349377,1533.2,1532.8,6.52395]
[1744335709397,0.55,1533.2,1532.8,1.2422]
[1744335709578,6.52383,1532.9,1532.5,1.2422]
[1744335709775,6.52441,1532.8,1532.5,1.2422]
[1744335710228,6.52475,1532.7,1532.5,1.2422]
[1744335710458,6.52506,1532.6,1532.3,1.2422]
[1744335710747,6.52485,1532.6,1532.3,1.2422]
[1744335711047,13.05004,1532.6,1532.3,1.2422]
[1744335711568,0.55,1532.7,1532.3,1.2422]
[1744335711713,6.52566,1532.5,1532.1,1.3422]
[1744335711909,6.52619,1532.3,1532.1,4.3422]
[1744335712221,6.52585,1532.4,1532.1,4.3422]
[1744335712414,6.52528,1532.5,1532.1,10.86918]
[1744335712611,13.0508,1532.5,1532.1,10.86918]
[1744335713343,6.52528,1532.5,1532.1,17.39595]
[1744335713513,6.52528,1532.5,1532.1,10.86897]
[1744335713712,6.52528,1532.5,1532.1,17.39579]
[1744335714020,15.01593,1532.6,1532.3,6.52612]
[1744335714969,7.88407,1532.8,1532.1,4.84258136]
[1744335715252,6.52372,1532.9,1532.6,6.52473]
[1744335715470,15.0162,1533.0,1532.6,13.0494]
[1744335716386,6.52385,1532.9,1532.5,6.52524]
[1744335716561,13.04783,1532.9,1532.5,6.52524]
[1744335716856,15.0163,1533.0,1532.6,6.52464]
[1744335717215,21.53971,1533.0,1532.6,6.52464]
[1744335717765,15.0163,1533.0,1532.6,6.52464]
[1744335718269,6.52381,1532.9,1532.5,6.5252]
[1744335718435,6.52381,1532.9,1532.5,13.05027]
[1744335718626,13.04781,1532.9,1532.5,6.52507]
[1744335719055,6.52323,1533.0,1532.6,7.82243]
[1744335719259,6.52457,1532.7,1532.4,4.2978]
[1744335719432,6.52511,1532.6,1532.4,1.2978]
[1744335719844,6.52511,1532.6,1532.4,3.0]
[1744335720057,13.05023,1532.6,1532.4,3.0]
[1744335720283,13.05019,1532.6,1532.4,3.0]
[1744335720458,0.55,1532.8,1532.3,3.0]
[1744335720638,6.52571,1532.4,1532.2,1.2978]
[1744335720852,12.68384,1532.9,1532.5,6.52527]
[1744335721055,6.52384,1532.9,1532.6,7.82264]
[1744335721243,6.5232,1533.0,1532.7,3.16028627]
[1744335721443,6.52278,1533.1,1532.7,9.68452627]
[1744335722079,6.52331,1533.0,1532.7,3.16028627]
[1744335722261,6.52389,1532.9,1532.7,3.16028627]
[1744335722464,6.524,1532.8,1532.7,3.16028627]